Cogmind - Beta 13 @@@ ROGUE MODE // 2024.07.24 @ 20:50:43 Player: Tuwiuu Result: Destroyed by D-53 Grenadier with Mini Grenade Launcher Performance ------------- Evolutions (0) 0 Regions Visited (2) 400 Robots Destroyed (16) 80 Value Destroyed (429) 429 Prototype IDs (0) 0 Alien Tech Used (0) 0 Bonus (0) 0 TOTAL SCORE: 909 Bonus ------- None Cogmind --------- Core Integrity 0/250 Matter 214/300 Energy 250/250 System Corruption 1% Temperature Cool (18) Movement Core (350) Ox6 Location -10/Mines Parts ------- > --- POWER (1) -------- Ion Engine > --- PROPULSION (2) --- (None) > --- UTILITY (2) ------ Medium Storage Unit Structural Scanner > --- WEAPON (2) ------- Beam Cannon Assault Rifle > --- INVENTORY (10) --- Aluminum Leg Aluminum Leg Large Storage Unit Terrain Scanner Terrain Scan Processor Beam Cannon Assault Rifle Rocket Launcher Peak State ------------ > --- POWER ------------ Light Nuclear Core > --- PROPULSION ------- Aluminum Leg Aluminum Leg > --- UTILITY ---------- Medium Storage Unit Structural Scanner > --- WEAPON ----------- Beam Cannon Light Assault Rifle > --- INVENTORY -------- Ion Engine Aluminum Leg Aluminum Leg Large Storage Unit Terrain Scanner Terrain Scan Processor Particle Gun Beam Cannon Beam Cannon Rocket Launcher [Rating: 10] Favorites ----------- Power Light Nuclear Core Engine Ion Engine Power Core Light Nuclear Core Propulsion Aluminum Leg Leg Aluminum Leg Utility Medium Storage Unit Device Structural Scanner Storage Medium Storage Unit Processor Transport Network Coupler Weapon Beam Cannon Energy Gun Particle Gun Energy Cannon Beam Cannon Ballistic Gun Assault Rifle Launcher Rocket Launcher Build | -11 -10 -10 ------- Run | Yrd Mat Min Slots Evolved . | . . . Power . | . . . Propulsion . | . . . Utility . | . . . Weapon . | . . . Parts Attached 31 | 7 19 5 Power 5 | 2 2 1 Engine 4 | 2 1 1 Core 1 | . 1 . Reactor . | . . . Propulsion 9 | 2 6 1 Treads . | . . . Leg 9 | 2 6 1 Wheel . | . . . Hover . | . . . Flight . | . . . Utility 4 | 1 3 . Device 1 | . 1 . Storage 2 | 1 1 . Processor 1 | . 1 . Hackware . | . . . Protection . | . . . Artifact . | . . . Weapon 13 | 2 8 3 Energy Gun 5 | 1 4 . Energy Cannon 2 | . 1 1 Ballistic Gun 5 | 1 3 1 Ballistic Cannon . | . . . Launcher 1 | . . 1 Special Weapon . | . . . Impact Weapon . | . . . Slashing Weapon . | . . . Piercing Weapon . | . . . Special Melee Weapon . | . . . Unidentified Prototypes . | . . . Parts Lost 5 | . 2 3 Power 1 | . . 1 Propulsion 3 | . 1 2 Utility . | . . . Weapon 1 | . 1 . Highest Loss Streak 2 | . 2 2 To Critical Strikes 1 | . 1 . Average Slot Usage (%) 96 | . 94 98 Engine 6 | . 8 2 Core 7 | . 5 11 Leg 28 | . 28 28 Device 9 | . 6 14 Storage 14 | . 14 14 Processor 1 | . 2 . Energy Gun 5 | . 7 . Energy Cannon 10 | . 8 13 Ballistic Gun 12 | . 11 13 Naked Turns . | . . . Heaviest Build 21 | 13 21 21 Greatest Support 20 | 20 20 20 Greatest Overweight (x) 1 | . 1 1 Average Overweight (x) . | . . . Largest Inventory Capacity 10 | 8 10 10 Average Capacity 9 | 7 9 10 Most Carried 10 | 6 10 10 Average Carried 8 | 3 8 9 Final Capacity 10 | 8 10 10 Final Carried 10 | 6 10 8 Class Distribution -------------------- 72% | Scavenger-Mutant 27% | Mutant Dominant Class ---------------- Scavenger-Mutant | -10/Materials Scavenger-Mutant | -10/Mines Resources | -11 -10 -10 ----------- Run | Yrd Mat Min Matter Collected 594 | 246 271 77 Remotely . | . . . Salvage Created 592 | . 470 122 Parts 33 | . 30 3 Haulers Intercepted 2 | . 2 . Recyclers Shooed . | . . . Parts Field Recycled . | . . . Retrieved Matter . | . . . Parts Self-Destructed . | . . . Prevented . | . . . Kills | -11 -10 -10 ------- Run | Yrd Mat Min Combat Hostiles Destroyed 30 | . 11 19 Guns 10 | . 7 3 Cannons 4 | . 3 1 AOE 15 | . . 15 Classes Destroyed 5 | . 4 1 Hauler 2 | . 2 . Watcher 1 | . 1 . Swarmer 3 | . 3 . Grunt 10 | . 8 2 Assembled 17 | . . 17 Best Kill Streak 17 | . 4 17 Combat Bots Only 17 | . 4 17 Max Kills in Single Turn 4 | . 1 4 Gunslinging . | . . . Exploded 4 | . . 4 Melee . | . . . Uniques/NPCs Destroyed . | . . . Combat | -11 -10 -10 -------- Run | Yrd Mat Min Hostile Shots Fired 100 | . 59 41 Missed 28 | . 14 14 Damage Taken 1146 | . 540 606 Core 265 | . 131 134 Absorbed by Shields . | . . . Core Remaining (%) 100 | 100 . . Volleys Fired 64 | . 47 17 Largest 2 | . 2 2 Hottest 130 | . 130 80 Shots Fired 113 | . 85 28 Gun 86 | . 75 11 Cannon 21 | . 10 11 Launcher 6 | . . 6 Special . | . . . Kinetic 44 | . 33 11 Thermal 63 | . 52 11 Explosive 6 | . . 6 Electromagnetic . | . . . Robot Hit Streak 11 | . 11 4 Robot Miss Streak 5 | . 2 5 Penetration Max . | . . . Secondary Targets . | . . . Shots Hit Robots 70 | . 56 14 Core Hits 57 | . 24 33 Critical Kills . | . . . Critical Parts Destroyed . | . . . Critical Strikes . | . . . Melee Attacks . | . . . Impact . | . . . Slashing . | . . . Piercing . | . . . Sneak Attacks . | . . . Combat Hostiles . | . . . Follow-up Attacks . | . . . Damage Inflicted 1967 | . 653 1314 Guns 574 | . 511 63 Cannons 247 | . 142 105 Explosions 1146 | . . 1146 Melee . | . . . Ramming . | . . . Kinetic 219 | . 156 63 Thermal 602 | . 497 105 Explosive 1146 | . . 1146 Electromagnetic . | . . . Impact . | . . . Slashing . | . . . Piercing . | . . . Highest Corruption 1 | . 1 1 Average Corruption 1 | . 1 1 Corruption Purged . | . . . Corruption Blocked . | . . . Effects 5 | . 2 3 Message Errors 1 | . . 1 Matter Fused 2 | . 2 . Data Loss (minor) 1 | . . 1 Data Loss (major) 1 | . . 1 Overload Shots . | . . . Overflow Damage 50 | . . 50 Projectiles . | . . . Explosions 50 | . . 50 Melee . | . . . Knockbacks . | . . . Impact . | . . . Kinetic . | . . . Secondary . | . . . Self-Inflicted Damage 20 | . . 20 Shots 1 | . . 1 Rammed . | . . . Targets Rammed . | . . . Kicked . | . . . Crushed . | . . . Highest Temperature 474 | . 474 231 Average Temperature 113 | . 118 96 Received Heat Transfer 297 | . 234 63 Effects 6 | . 5 1 Shutdowns 1 | . 1 . Energy Bleed 1 | . . 1 Interference 1 | . 1 . Matter Decay 1 | . 1 . Short Circuit 2 | . 2 . Siege Activations . | . . . Robots Corrupted . | . . . Combat Hostiles . | . . . Parts Fried . | . . . Impact Corruptions . | . . . Robots Melted 1 | . 1 . Combat Hostiles 1 | . 1 . Parts Melted . | . . . Heat Transferred 1338 | . 1116 222 Parts Sabotaged . | . . . Parts Stolen . | . . . Parts Stripped . | . . . Power Chain Reactions . | . . . Alert | -11 -10 -10 ------- Run | Yrd Mat Min Peak Influence 221 | . 221 75 Initial 5 | . . 5 Average 74 | . 97 45 Maximum Alert Level 1 | . 1 . Low Security (%) 92 | 100 86 100 Level 1 7 | . 13 . Level 2 . | . . . Level 3 . | . . . Level 4 . | . . . Level 5 . | . . . High Security . | . . . Max Security . | . . . Squads Dispatched 1 | . 1 . Investigation . | . . . Extermination . | . . . Reinforcement 1 | . 1 . Assault . | . . . Garrison . | . . . Intercept . | . . . Searches Triggered . | . . . Construction Impeded . | . . . Haulers Reinforced . | . . . Active Scanning Responses . | . . . Cargo Convoy Interrupts . | . . . Stealth | -11 -10 -10 --------- Run | Yrd Mat Min Distress Signals 1 | . 1 . Communications Jammed . | . . . Distress Signals . | . . . Times Spotted 41 | . 20 21 Peak Tracking Total 17 | . 4 17 Tactical Retreats . | . . . Traps | -11 -10 -10 ------- Run | Yrd Mat Min Traps Triggered 1 | . 1 . Indirectly . | . . . Trap Hack Attempts . | . . . Triggered . | . . . Disarmed . | . . . Reprogrammed . | . . . Reused . | . . . Traps Extracted . | . . . Installed . | . . . Triggered . | . . . Machines | -11 -10 -10 ---------- Run | Yrd Mat Min Machines Disabled . | . . . Max in Single Turn . | . . . Machines Repaired . | . . . Machines Dismantled . | . . . Machines Sabotaged . | . . . Overloaded Fab Kills . | . . . Hacking | -11 -10 -10 --------- Run | Yrd Mat Min Machines Accessed 6 | . 6 . Terminals 6 | . 6 . Fabricators . | . . . Repair Stations . | . . . Recycling Units . | . . . Scanalyzers . | . . . Garrison Access . | . . . Total Hacks 20 | . 20 . Successful 13 | . 13 . Failed 7 | . 7 . Catastrophic . | . . . Database Lockouts . | . . . Manual 18 | . 18 . Terminals 20 | . 20 . Fabricators . | . . . Repair Stations . | . . . Recycling Units . | . . . Scanalyzers . | . . . Garrison Access . | . . . Terminal Hacks 4 | . 4 . Robot Analysis 2 | . 2 . Branch Access Points 1 | . 1 . Emergency Access Points 1 | . 1 . Fabricator Hacks . | . . . Repair Station Hacks . | . . . Recycling Unit Hacks . | . . . Scanalyzer . | . . . Garrison Access Hacks . | . . . Unauthorized Hacks 9 | . 9 . Terminals 9 | . 9 . Assimilate 3 | . 3 . Botnet 5 | . 5 . Operators 1 | . 1 . Fabricators . | . . . Repair Stations . | . . . Recycling Units . | . . . Scanalyzers . | . . . Garrison Access . | . . . Data Cores Recovered . | . . . Used . | . . . Hacking Detections 4 | . 4 . Full Trace Events . | . . . Feedback Events . | . . . Feedback Blocked . | . . . Robot Schematics Acquired . | . . . Robots Built . | . . . Authchips . | . . . Time . | . . . Total Robot Build Rating . | . . . Part Schematics Acquired . | . . . Parts Built . | . . . Authchips . | . . . Time . | . . . Total Part Build Rating . | . . . Parts Repaired . | . . . Time . | . . . Parts Recycled . | . . . Recycled Matter . | . . . Retrieved Matter . | . . . Retrieved Components . | . . . Parts Scanalyzed . | . . . Part Schematics Acquired . | . . . Parts Damaged . | . . . Bothacking | -11 -10 -10 ------------ Run | Yrd Mat Min Used RIF Installer . | . . . Robots Hacked . | . . . Non-combat . | . . . Combat . | . . . Robot Hacks Applied . | . . . Relay Couplers Released . | . . . Fabnet Peak Effective % . | . . . Robots Rewired . | . . . Allies Hacked . | . . . Hacks Repelled . | . . . Allies | -11 -10 -10 -------- Run | Yrd Mat Min Total Allies . | . . . Largest Group . | . . . Highest-Rated Group . | . . . Highest-Rated Ally . | . . . Total Orders . | . . . Ally Attacks . | . . . Total Damage . | . . . Kills . | . . . Allies Corrupted . | . . . Allies Melted . | . . . Intel | -11 -10 -10 ------- Run | Yrd Mat Min Robot Analysis Total 2 | . 2 . Derelict Logs Recovered . | . . . Drone Launches . | . . . Drone Recoveries . | . . . Exploration | -11 -10 -10 ------------- Run | Yrd Mat Min Turns Passed 1426 | 89 867 470 Spaces Moved 775 | 63 488 224 Core 2 | 2 . . Treads . | . . . Legs 773 | 61 488 224 Wheels . | . . . Hover . | . . . Flight . | . . . Fastest Speed 50 | 50 120 120 Average Speed 147 | 117 132 186 Slowest Speed 190 | 120 190 190 Overloaded Moves . | . . . Propulsion Burnouts . | . . . Robots Hopped . | . . . Cave-ins Triggered . | . . . Exploration Rate (%) 46 | 5 78 55 Regions Visited 2 Branch Regions 1 Pre-discovered Areas . | . . . Known Exits Taken 1 | . 1 . Unknown Exits Taken 1 | 1 . . Scrap Searched 1 | . . 1 Spaces Dug . | . . . Terrain Destroyed 34 | . . 34 Melee . | . . . Projectile . | . . . AOE 34 | . . 34 Terrain Rammed . | . . . Walls Destroyed . | . . . Machines Disabled . | . . . Actions | -11 -10 -10 --------- Run | Yrd Mat Min Total 957 | 74 635 248 Wait 47 | . 47 . Move 773 | 62 487 224 Hop . | . . . Pick Up 18 | 5 13 . Fast Attach 14 | 6 8 . Attach 4 | . 2 2 Detach 1 | . 1 . Swap 13 | 1 9 3 Drop 23 | . 21 2 Fire 64 | . 47 17 Melee . | . . . Ram . | . . . Kick . | . . . Crush . | . . . Escape Stasis . | . . . Rewire . | . . . Trap . | . . . Miscellaneous . | . . . Route ------- -11/Scrapyard -10/Materials (discovered 2 exits: [*Mat] / *Min) -10/Mines History --------- Turn | Location | Event 6 | -11/Scrapyard | Discovered new exit (range 15) 90 | -11/Scrapyard | Entered Materials 303 | -10/Materials | Build established: Mutant 536 | -10/Materials | Identified exit to Mines 656 | -10/Materials | Discovered new exit (range 7) 705 | -10/Materials | Build established: Scavenger-Mutant 763 | -10/Materials | Core integrity fell below 50% 957 | -10/Materials | Entered Mines 1031 | -10/Mines | Received a Rocket Launcher from a helpful Derelict 1325 | -10/Mines | Assembled infested the area 1330 | -10/Mines | Assisted by a Guerilla fighting off Assembled 1357 | -10/Mines | Core integrity fell below 20% 1383 | -10/Mines | Destroyed 17 combat bots 1427 | -10/Mines | Destroyed by D-53 Grenadier with Mini Grenade Launcher Last Messages --------------- 01356_ as-05703 destroyed. 01357_ The unstable cave ceiling collapses. 01357_ K-01 Serf collects debris. 01362_ as-84977 destroyed. 01365_ K-01 Serf collects debris. 01365_ Acquired 1 matter. 01367_ The unstable cave ceiling collapses. 01369_ K-01 Serf collects debris. 01381_ The unstable cave ceiling collapses. 01384_ K-01 Serf collects debris. 01388_ Acquired 16 matter. 01391_ K-01 Serf collects debris. 01395_ The unstable cave ceiling collapses. 01396_ K-01 Serf collects debris. 01404_ The unstable cave ceiling collapses. 01405_ K-01 Serf collects debris. 01408_ R-06 Scavenger collects Lgt. Ion Engine. 01414_ K-01 Serf collects debris. 01418_ The unstable cave ceiling collapses. 01423_ Aluminum Leg destroyed. Map ----- +----------------------------------------------------+ | | | | | | | | | | | | | | | | | | | | | ????????????????????????????????????????????????? | | ????????????????????????????????????????????????? | | ????????????????????????????????????????????????? | | ????????????????#####???????????????????????????# | | ???????????????###########??????????????????##### | | ??????????????#### ########????????????????##### | | ??????????????### ###????????????????## | | ?????????????### ##????????????????## | | ????????????#### ####??????????????### | | ????????????### ######????????????##### | | ??????????? ## # #####????????????#### | | ??????????? ## ###????????????#### | | ??????????? # ###???????######## | | ??????????? # ?## ####?????####### | | ???????????????### ###????#### | | ???????????????### @ < ##???#### # | | ??????????????### ######## | | ??????????????## ####### | | ??????????????## # | | ??????????????### # d # # | | ??????????????#### ###### d ### | | ???????????????#### ######## ## # # | | ????????????????#### ##???## # ## | | ?????????????????#######????### % ### ##### | | ??????????????????#####?????## ### #### | | ????????????????????????????## ### #### | | ????????????????????????????## % ###### #### | | ????????????????????????????##% ###### ##### | | ???????????????????????????? " ##?### ##### | | ????????????????????????????? ###??## #### | | ???????????????????????????? ####??### ### | | ???????????????????????????? ###??#### ### | | ??????????????????????????? ##???#### ### | | ??????????????????????????? #####???### ## | | ??????????????????????????? ####????## | | ????????????????????????????????????## | | ???????????????????????????????????### | | ???????????????????????????????????## ### | | ????????????????????????????????? ##### | | ????????????????????????????? ???##### | +----------------------------------------------------+ Best States ------------- Heat Dissipation 25 Energy Generation 14 Energy Capacity 250 Matter Stores 300 Matter Capacity 300 Sight Range 16 Terrain Scan Density 10 Evasion (%) 55 Item Schematics ----------------- None Robot Schematics ------------------ None Fabricated ------------ Nothing Alien Tech Used ----------------- None Achievements -------------- Exterminator Quantum Hacking True Hacker root@ Challenges ------------ None Game ------ Seed SlugAlphaBeam Manual? 0 Play Time 00:29:03 Cumulative 14.7 hours Start 2024.07.24 @ 20:22:57 End 2024.07.24 @ 20:50:43 Sessions 1 Manual Loads 0 Difficulty Rogue Special Mode None Game No. 5 Rogue 5 Adventurer 0 Explorer 0 Win Type - Total 0 Types 0/0/0/0/0/0/0/0/0 Lore% 15 Gallery% 18 Achievement% 21 Wizard Run 0 Options --------- Layout 0 ASCII 0 Keyboard 0 Movement Mouse Keybinds 0 Fullscreen 2 Font 36/Smallcaps Map View 76x50 Zoom Use 0% Tactical HUD 1 Map Filters NONE Filters NONE Steam 1 RUN: e82e56c9-811e-4b42-8384-b2b19a6173a1